[Event "Early-Titled-Tuesday-Blitz-September-26-2023"]
[Site "Chess.com"]
[Date "2023.09.26"]
[Round "4"]
[White "LoaySameer"]
[Black "jup1978"]
[Result "1-0"]
[WhiteElo "2610"]
[BlackElo "2423"]
[TimeControl "180+1"]
[EndTime "8:37:52 PDT"]
[Termination "LoaySameer won by resignation"]

1. Nf3 {[%clk 0:03:00.9]} 1... d5 {[%clk 0:02:57.8]} 2. g3 {[%clk 0:03:01]} 2...
c6 {[%clk 0:02:56.5]} 3. Bg2 {[%clk 0:03:01.6]} 3... Bf5 {[%clk 0:02:57.1]} 4.
O-O {[%clk 0:03:02.1]} 4... e6 {[%clk 0:02:57.7]} 5. d3 {[%clk 0:03:02.8]} 5...
Nf6 {[%clk 0:02:58.2]} 6. Nbd2 {[%clk 0:03:03.5]} 6... h6 {[%clk 0:02:58.6]} 7.
b3 {[%clk 0:03:04.2]} 7... Bd6 {[%clk 0:02:55.8]} 8. Bb2 {[%clk 0:03:04.6]} 8...
Qe7 {[%clk 0:02:55.9]} 9. e4 {[%clk 0:03:03.7]} 9... dxe4 {[%clk 0:02:53.6]} 10.
dxe4 {[%clk 0:03:04]} 10... Nxe4 {[%clk 0:02:48.8]} 11. Nxe4 {[%clk 0:02:57]}
11... Bxe4 {[%clk 0:02:48.6]} 12. Bxg7 {[%clk 0:02:57.7]} 12... Rg8 {[%clk
0:02:48.4]} 13. Bxh6 {[%clk 0:02:57.5]} 13... Nd7 {[%clk 0:02:40.1]} 14. Qe2
{[%clk 0:02:56.4]} 14... Bxf3 {[%clk 0:02:27.4]} 15. Bxf3 {[%clk 0:02:49.5]}
15... O-O-O {[%clk 0:02:27.2]} 16. a4 {[%clk 0:02:40.2]} 16... Rg6 {[%clk
0:02:25.4]} 17. Be3 {[%clk 0:02:39.3]} 17... Rh8 {[%clk 0:02:25.1]} 18. Bg2
{[%clk 0:02:27]} 18... Kb8 {[%clk 0:02:06.5]} 19. Rfd1 {[%clk 0:02:23]} 19...
Bc7 {[%clk 0:02:03.8]} 20. a5 {[%clk 0:02:22.2]} 20... a6 {[%clk 0:01:59]} 21.
b4 {[%clk 0:02:14.2]} 21... Nf6 {[%clk 0:01:54.4]} 22. Bc5 {[%clk 0:02:07.7]}
22... Qe8 {[%clk 0:01:47.6]} 23. c4 {[%clk 0:02:01.2]} 23... Ng4 {[%clk
0:01:40.8]} 24. h3 {[%clk 0:01:59.1]} 24... Ne5 {[%clk 0:01:37.7]} 25. Bd6
{[%clk 0:01:57.7]} 25... f6 {[%clk 0:01:30.1]} 26. Bxc7+ {[%clk 0:01:54.7]}
26... Kxc7 {[%clk 0:01:31]} 27. b5 {[%clk 0:01:41.7]} 27... Qe7 {[%clk
0:01:31.1]} 28. bxc6 {[%clk 0:01:38.1]} 28... Nxc6 {[%clk 0:01:28.1]} 29. Rab1
{[%clk 0:01:35.9]} 29... Rb8 {[%clk 0:01:15.1]} 30. Qe3 {[%clk 0:01:29.2]} 30...
Ne5 {[%clk 0:00:56.3]} 31. Qb6+ {[%clk 0:01:03.8]} 31... Kc8 {[%clk 0:00:55.2]}
32. Rd8+ {[%clk 0:01:04]} 1-0

[Event "Early-Titled-Tuesday-Blitz-September-26-2023"]
[Site "Chess.com"]
[Date "2023.09.26"]
[Round "4"]
[White "spotbet"]
[Black "ArmanGhevondyanchess"]
[Result "0-1"]
[WhiteElo "2374"]
[BlackElo "2591"]
[TimeControl "180+1"]
[EndTime "8:37:53 PDT"]
[Termination "ArmanGhevondyanchess won by resignation"]

1. e4 {[%clk 0:02:51.9]} 1... c5 {[%clk 0:03:00.1]} 2. Nf3 {[%clk 0:02:49.9]}
2... Nc6 {[%clk 0:02:59.8]} 3. d4 {[%clk 0:02:50.2]} 3... cxd4 {[%clk
0:03:00.7]} 4. Nxd4 {[%clk 0:02:50.9]} 4... g6 {[%clk 0:03:01.4]} 5. c4 {[%clk
0:02:50.6]} 5... Bg7 {[%clk 0:03:02]} 6. Be3 {[%clk 0:02:49.2]} 6... Nf6 {[%clk
0:03:02.6]} 7. Nc3 {[%clk 0:02:47.5]} 7... Ng4 {[%clk 0:03:03.2]} 8. Nxc6 {[%clk
0:02:47.1]} 8... Nxe3 {[%clk 0:03:03]} 9. Nxd8 {[%clk 0:02:44.5]} 9... Nxd1
{[%clk 0:03:03.1]} 10. Nxd1 {[%clk 0:02:39.4]} 10... Kxd8 {[%clk 0:03:02.2]} 11.
Bd3 {[%clk 0:02:38.7]} 11... d6 {[%clk 0:02:57.5]} 12. Rb1 {[%clk 0:02:38.2]}
12... Be6 {[%clk 0:02:51.7]} 13. b3 {[%clk 0:02:37.6]} 13... a5 {[%clk 0:02:44]}
14. Nb2 {[%clk 0:02:32.7]} 14... Kc7 {[%clk 0:02:35.5]} 15. Ke2 {[%clk
0:02:33.2]} 15... Ra7 {[%clk 0:02:31.5]} 16. Na4 {[%clk 0:02:31.8]} 16... Bd7
{[%clk 0:02:27.1]} 17. Nb2 {[%clk 0:02:30.4]} 17... Rha8 {[%clk 0:02:20.3]} 18.
Rhc1 {[%clk 0:02:29.5]} 18... b6 {[%clk 0:02:14.4]} 19. Nd1 {[%clk 0:02:28.8]}
19... a4 {[%clk 0:02:10.5]} 20. b4 {[%clk 0:02:28]} 20... Kd8 {[%clk 0:02:09.4]}
21. a3 {[%clk 0:02:22.7]} 21... Rc7 {[%clk 0:02:04.2]} 22. Nc3 {[%clk
0:02:22.3]} 22... Bxc3 {[%clk 0:01:55.5]} 23. Rxc3 {[%clk 0:02:22.3]} 23... b5
{[%clk 0:01:56.2]} 24. Rbc1 {[%clk 0:02:22.5]} 24... Rac8 {[%clk 0:01:55.8]} 25.
Kd2 {[%clk 0:02:22.1]} 25... bxc4 {[%clk 0:01:47.1]} 26. Bxc4 {[%clk 0:02:21.5]}
26... e6 {[%clk 0:01:42]} 27. Ba6 {[%clk 0:02:09.1]} 27... Rxc3 {[%clk
0:01:38.5]} 28. Rxc3 {[%clk 0:02:10]} 28... Ra8 {[%clk 0:01:30.2]} 29. Bd3
{[%clk 0:02:06.2]} 29... Rb8 {[%clk 0:01:22.4]} 30. Bc2 {[%clk 0:02:00.9]} 30...
f5 {[%clk 0:01:18.9]} 31. exf5 {[%clk 0:02:00.6]} 31... gxf5 {[%clk 0:01:18.6]}
32. f4 {[%clk 0:02:01]} 32... Rb5 {[%clk 0:01:09]} 33. Rh3 {[%clk 0:02:00.5]}
33... e5 {[%clk 0:01:03]} 34. Rxh7 {[%clk 0:01:53.5]} 34... Rd5+ {[%clk
0:01:03.4]} 35. Ke3 {[%clk 0:01:52.3]} 35... exf4+ {[%clk 0:01:01.9]} 36. Kxf4
{[%clk 0:01:52.6]} 36... Rd2 {[%clk 0:01:01.6]} 37. Rxd7+ {[%clk 0:01:36.5]}
37... Kxd7 {[%clk 0:01:01.6]} 38. Bxa4+ {[%clk 0:01:29.9]} 38... Ke6 {[%clk
0:00:58.9]} 39. Bb3+ {[%clk 0:01:29.6]} 39... d5 {[%clk 0:00:55]} 40. Kf3 {[%clk
0:01:18.4]} 40... Rd3+ {[%clk 0:00:54.8]} 0-1

[Event "Early-Titled-Tuesday-Blitz-September-26-2023"]
[Site "Chess.com"]
[Date "2023.09.26"]
[Round "4"]
[White "Misticpikachu"]
[Black "Korchmar_Vasiliy"]
[Result "1-0"]
[WhiteElo "2542"]
[BlackElo "2694"]
[TimeControl "180+1"]
[EndTime "8:37:58 PDT"]
[Termination "Misticpikachu won by resignation"]

1. c4 {[%clk 0:03:00.9]} 1... e6 {[%clk 0:02:59.5]} 2. Nf3 {[%clk 0:03:00.6]}
2... d5 {[%clk 0:02:57.4]} 3. e3 {[%clk 0:03:01.1]} 3... Nf6 {[%clk 0:02:57.2]}
4. Nc3 {[%clk 0:03:01.6]} 4... Bd6 {[%clk 0:02:55.7]} 5. b3 {[%clk 0:03:01.7]}
5... O-O {[%clk 0:02:54.5]} 6. Bb2 {[%clk 0:03:02.2]} 6... c5 {[%clk 0:02:55.1]}
7. cxd5 {[%clk 0:03:02.1]} 7... exd5 {[%clk 0:02:51.4]} 8. d4 {[%clk 0:03:02.5]}
8... cxd4 {[%clk 0:02:48.8]} 9. Nxd4 {[%clk 0:03:00.3]} 9... Nc6 {[%clk
0:02:49.3]} 10. Be2 {[%clk 0:02:57.3]} 10... Nxd4 {[%clk 0:02:40.2]} 11. Qxd4
{[%clk 0:02:55]} 11... Qe7 {[%clk 0:02:40.8]} 12. Nxd5 {[%clk 0:02:49.8]} 12...
Qe6 {[%clk 0:02:23.6]} 13. Nxf6+ {[%clk 0:02:28.7]} 13... gxf6 {[%clk
0:02:24.5]} 14. Qxf6 {[%clk 0:02:26.3]} 14... Bb4+ {[%clk 0:02:24.7]} 15. Kf1
{[%clk 0:02:24.4]} 15... Qxf6 {[%clk 0:02:25.6]} 16. Bxf6 {[%clk 0:02:24.1]}
16... Be6 {[%clk 0:02:18.5]} 17. Bf3 {[%clk 0:02:14.7]} 17... a5 {[%clk
0:02:15.6]} 18. Ke2 {[%clk 0:02:12.1]} 18... a4 {[%clk 0:02:13.4]} 19. Bxb7
{[%clk 0:02:01]} 19... Ra7 {[%clk 0:02:03.3]} 20. Be4 {[%clk 0:02:01.4]} 20...
Ra6 {[%clk 0:01:36.2]} 21. Bd4 {[%clk 0:01:50.3]} 21... f5 {[%clk 0:01:09.9]}
22. Bd3 {[%clk 0:01:49]} 22... Raa8 {[%clk 0:01:03.8]} 23. a3 {[%clk 0:01:49]}
23... Bd6 {[%clk 0:01:00]} 24. Bc4 {[%clk 0:01:46.2]} 24... Bxc4+ {[%clk
0:00:57.9]} 25. bxc4 {[%clk 0:01:47.1]} 25... f4 {[%clk 0:00:53.3]} 26. c5
{[%clk 0:01:47.4]} 26... Be7 {[%clk 0:00:51.2]} 27. Rab1 {[%clk 0:01:47.3]}
27... fxe3 {[%clk 0:00:50.9]} 28. fxe3 {[%clk 0:01:44.3]} 28... Rfc8 {[%clk
0:00:49.3]} 29. Rhc1 {[%clk 0:01:40.3]} 29... Ra5 {[%clk 0:00:49.5]} 30. Rb4
{[%clk 0:01:31.5]} 30... Kf7 {[%clk 0:00:43.7]} 31. Rcc4 {[%clk 0:01:31.5]}
31... Rca8 {[%clk 0:00:40.7]} 32. Rb7 {[%clk 0:01:29]} 32... Ke6 {[%clk
0:00:39.1]} 33. Bc3 {[%clk 0:01:21.5]} 33... Rxc5 {[%clk 0:00:37]} 34. Rxe7+
{[%clk 0:01:21.5]} 34... Kxe7 {[%clk 0:00:36.1]} 35. Rxc5 {[%clk 0:01:21.6]} 1-0

[Event "Early-Titled-Tuesday-Blitz-September-26-2023"]
[Site "Chess.com"]
[Date "2023.09.26"]
[Round "4"]
[White "KaydenTroffChess"]
[Black "Just_Lucky_1"]
[Result "1-0"]
[WhiteElo "2753"]
[BlackElo "2572"]
[TimeControl "180+1"]
[EndTime "8:38:00 PDT"]
[Termination "KaydenTroffChess won by resignation"]

1. d4 {[%clk 0:03:00.9]} 1... Nf6 {[%clk 0:03:00.4]} 2. Nf3 {[%clk 0:03:01.5]}
2... e6 {[%clk 0:03:01]} 3. Bf4 {[%clk 0:03:01.8]} 3... d5 {[%clk 0:03:01.7]} 4.
e3 {[%clk 0:03:02.1]} 4... Nbd7 {[%clk 0:03:02.1]} 5. Nbd2 {[%clk 0:03:00.4]}
5... h6 {[%clk 0:03:02.2]} 6. h3 {[%clk 0:02:57.9]} 6... Bd6 {[%clk 0:03:02.7]}
7. Ne5 {[%clk 0:02:57.8]} 7... Bxe5 {[%clk 0:02:52.5]} 8. dxe5 {[%clk
0:02:56.4]} 8... Ng8 {[%clk 0:02:53.2]} 9. c4 {[%clk 0:02:55.1]} 9... c6 {[%clk
0:02:49.8]} 10. cxd5 {[%clk 0:02:52.3]} 10... cxd5 {[%clk 0:02:50.7]} 11. Bd3
{[%clk 0:02:48.8]} 11... Ne7 {[%clk 0:02:49.9]} 12. Bg3 {[%clk 0:02:48.9]} 12...
b6 {[%clk 0:02:37.3]} 13. O-O {[%clk 0:02:46.4]} 13... Bb7 {[%clk 0:02:37.8]}
14. Qg4 {[%clk 0:02:35.1]} 14... g6 {[%clk 0:02:36.8]} 15. Nf3 {[%clk
0:02:30.8]} 15... h5 {[%clk 0:02:31.8]} 16. Qf4 {[%clk 0:02:30]} 16... Nc5
{[%clk 0:01:56.5]} 17. Bc2 {[%clk 0:02:23.9]} 17... Nf5 {[%clk 0:01:46]} 18.
Bxf5 {[%clk 0:02:22.4]} 18... gxf5 {[%clk 0:01:46.9]} 19. Bh4 {[%clk 0:02:22.9]}
19... Qd7 {[%clk 0:01:44.1]} 20. Bf6 {[%clk 0:02:18.8]} 20... Rg8 {[%clk
0:01:43.5]} 21. Qh6 {[%clk 0:02:10.8]} 21... d4 {[%clk 0:01:01.4]} 22. Qh7
{[%clk 0:02:08.3]} 22... Kf8 {[%clk 0:01:01.8]} 23. Ng5 {[%clk 0:02:01.1]} 23...
Ne4 {[%clk 0:00:54]} 24. h4 {[%clk 0:01:36.4]} 24... Nxg5 {[%clk 0:00:44.7]} 25.
hxg5 {[%clk 0:01:34.7]} 25... Qd5 {[%clk 0:00:44.8]} 26. f3 {[%clk 0:01:34.1]}
26... dxe3 {[%clk 0:00:32.9]} 27. Rfd1 {[%clk 0:01:34.1]} 27... Qc5 {[%clk
0:00:30.6]} 28. Rd7 {[%clk 0:01:32.4]} 28... e2+ {[%clk 0:00:28]} 29. Kh2 {[%clk
0:01:31.5]} 1-0

[Event "Early-Titled-Tuesday-Blitz-September-26-2023"]
[Site "Chess.com"]
[Date "2023.09.26"]
[Round "4"]
[White "slorovel"]
[Black "CixPer1968"]
[Result "1-0"]
[WhiteElo "2470"]
[BlackElo "2212"]
[TimeControl "180+1"]
[EndTime "8:38:01 PDT"]
[Termination "slorovel won on time"]

1. e4 {[%clk 0:02:54.4]} 1... c5 {[%clk 0:02:59.2]} 2. Nf3 {[%clk 0:02:54.2]}
2... d6 {[%clk 0:02:59.4]} 3. d4 {[%clk 0:02:53.9]} 3... cxd4 {[%clk 0:02:59.8]}
4. Nxd4 {[%clk 0:02:54.8]} 4... Nf6 {[%clk 0:02:59.2]} 5. Nc3 {[%clk 0:02:55]}
5... g6 {[%clk 0:02:59.8]} 6. Be3 {[%clk 0:02:53.1]} 6... Bg7 {[%clk 0:02:59.5]}
7. f3 {[%clk 0:02:49.8]} 7... O-O {[%clk 0:02:59.3]} 8. Qd2 {[%clk 0:02:50.2]}
8... Nc6 {[%clk 0:02:59.1]} 9. g4 {[%clk 0:02:49.8]} 9... Be6 {[%clk 0:02:57]}
10. O-O-O {[%clk 0:02:48.1]} 10... Rc8 {[%clk 0:02:44.4]} 11. Kb1 {[%clk
0:02:44.9]} 11... a6 {[%clk 0:02:33.6]} 12. h4 {[%clk 0:02:38.3]} 12... Bxg4
{[%clk 0:02:11.5]} 13. fxg4 {[%clk 0:02:33.2]} 13... Nxg4 {[%clk 0:02:10.5]} 14.
Bg1 {[%clk 0:02:33.6]} 14... h5 {[%clk 0:01:51.7]} 15. Be2 {[%clk 0:02:27.9]}
15... Bh6 {[%clk 0:01:46.5]} 16. Qe1 {[%clk 0:02:20.1]} 16... Ne3 {[%clk
0:01:43.9]} 17. Nxc6 {[%clk 0:02:16.4]} 17... Rxc6 {[%clk 0:01:38.8]} 18. Bxe3
{[%clk 0:02:16.6]} 18... Bxe3 {[%clk 0:01:37.7]} 19. Bxh5 {[%clk 0:02:17.2]}
19... Bh6 {[%clk 0:01:27.9]} 20. Rg1 {[%clk 0:02:12.5]} 20... Kh7 {[%clk
0:01:25.8]} 21. Be2 {[%clk 0:02:06.2]} 21... Bg7 {[%clk 0:01:24.7]} 22. h5
{[%clk 0:02:04.5]} 22... Qb6 {[%clk 0:01:23]} 23. hxg6+ {[%clk 0:02:04.4]} 23...
fxg6 {[%clk 0:01:11]} 24. Rd3 {[%clk 0:01:48.3]} 24... Rfc8 {[%clk 0:01:00.5]}
25. Ka1 {[%clk 0:01:47.1]} 25... Rxc3 {[%clk 0:00:56.1]} 26. bxc3 {[%clk
0:01:43.5]} 26... Rxc3 {[%clk 0:00:36]} 27. Rh1+ {[%clk 0:01:39.7]} 27... Kg8
{[%clk 0:00:31.2]} 28. Rxc3 {[%clk 0:01:39.2]} 28... Qb4 {[%clk 0:00:22.6]} 29.
Rh3 {[%clk 0:01:38.1]} 1-0

[Event "Early-Titled-Tuesday-Blitz-September-26-2023"]
[Site "Chess.com"]
[Date "2023.09.26"]
[Round "4"]
[White "Kaiyrbekov"]
[Black "Francisco_Ferrari"]
[Result "1-0"]
[WhiteElo "1615"]
[BlackElo "2402"]
[TimeControl "180+1"]
[EndTime "8:38:12 PDT"]
[Termination "Kaiyrbekov won by resignation"]

1. e4 {[%clk 0:02:55.2]} 1... d6 {[%clk 0:02:55.3]} 2. d4 {[%clk 0:02:51.5]}
2... g6 {[%clk 0:02:41.2]} 3. Nf3 {[%clk 0:02:48.3]} 3... Bg7 {[%clk 0:02:33.7]}
4. Bd3 {[%clk 0:02:48.2]} 4... Nd7 {[%clk 0:02:27.5]} 5. Be3 {[%clk 0:02:40.2]}
5... Ngf6 {[%clk 0:02:23.7]} 6. O-O {[%clk 0:02:38.3]} 6... O-O {[%clk
0:02:19.9]} 7. c3 {[%clk 0:02:32.6]} 7... e5 {[%clk 0:02:16.8]} 8. Qc2 {[%clk
0:02:28.4]} 8... Re8 {[%clk 0:02:13.4]} 9. Nbd2 {[%clk 0:02:23]} 9... c6 {[%clk
0:02:09]} 10. Rad1 {[%clk 0:02:11.1]} 10... Qc7 {[%clk 0:01:51.4]} 11. Rfe1
{[%clk 0:02:06]} 11... b5 {[%clk 0:01:43.7]} 12. dxe5 {[%clk 0:01:58.1]} 12...
dxe5 {[%clk 0:01:30.6]} 13. h3 {[%clk 0:01:55.1]} 13... a6 {[%clk 0:01:29]} 14.
a3 {[%clk 0:01:51.6]} 14... c5 {[%clk 0:01:26]} 15. c4 {[%clk 0:01:49.6]} 15...
Rb8 {[%clk 0:00:59.7]} 16. cxb5 {[%clk 0:01:48.7]} 16... axb5 {[%clk 0:01:00.6]}
17. Rc1 {[%clk 0:01:39.8]} 17... c4 {[%clk 0:00:59.9]} 18. Bf1 {[%clk
0:01:37.5]} 18... Qd8 {[%clk 0:00:29.8]} 19. a4 {[%clk 0:01:33.4]} 19... bxa4
{[%clk 0:00:24.1]} 20. Nxc4 {[%clk 0:01:33.9]} 20... Re6 {[%clk 0:00:15.9]} 21.
Qxa4 {[%clk 0:01:15.4]} 21... Nxe4 {[%clk 0:00:13.7]} 22. Na5 {[%clk 0:01:15.9]}
22... Ra6 {[%clk 0:00:09.5]} 23. Bxa6 {[%clk 0:01:13.6]} 23... Bxa6 {[%clk
0:00:08.3]} 24. Nc6 {[%clk 0:01:12]} 1-0

[Event "Early-Titled-Tuesday-Blitz-September-26-2023"]
[Site "Chess.com"]
[Date "2023.09.26"]
[Round "4"]
[White "Igrok3069"]
[Black "DTChess"]
[Result "1-0"]
[WhiteElo "2876"]
[BlackElo "2591"]
[TimeControl "180+1"]
[EndTime "8:38:16 PDT"]
[Termination "Igrok3069 won by resignation"]

1. d4 {[%clk 0:02:52]} 1... Nf6 {[%clk 0:02:59.8]} 2. c4 {[%clk 0:02:51]} 2...
e6 {[%clk 0:02:59.7]} 3. Nc3 {[%clk 0:02:51.6]} 3... d5 {[%clk 0:02:59.8]} 4.
cxd5 {[%clk 0:02:51.1]} 4... exd5 {[%clk 0:03:00]} 5. Bg5 {[%clk 0:02:51.6]}
5... c6 {[%clk 0:03:00.3]} 6. e3 {[%clk 0:02:51.6]} 6... Be7 {[%clk 0:03:00.4]}
7. Bd3 {[%clk 0:02:51.4]} 7... O-O {[%clk 0:03:00.4]} 8. Nge2 {[%clk 0:02:51.2]}
8... Nbd7 {[%clk 0:03:00.8]} 9. Qc2 {[%clk 0:02:50.9]} 9... Re8 {[%clk
0:03:00.9]} 10. O-O {[%clk 0:02:49.2]} 10... Nf8 {[%clk 0:03:01.2]} 11. Rab1
{[%clk 0:02:46.2]} 11... g6 {[%clk 0:02:56.2]} 12. b4 {[%clk 0:02:45.1]} 12...
Ne6 {[%clk 0:02:56.2]} 13. Bh4 {[%clk 0:02:35.3]} 13... b6 {[%clk 0:02:52.4]}
14. Rfd1 {[%clk 0:02:27.5]} 14... Bb7 {[%clk 0:02:52]} 15. b5 {[%clk 0:02:26.9]}
15... c5 {[%clk 0:02:51]} 16. dxc5 {[%clk 0:02:26.4]} 16... bxc5 {[%clk
0:02:51]} 17. Bxf6 {[%clk 0:02:26.1]} 17... Bxf6 {[%clk 0:02:50.8]} 18. Be4
{[%clk 0:02:27]} 18... Nc7 {[%clk 0:02:25.9]} 19. Bf3 {[%clk 0:02:26.9]} 19...
Rb8 {[%clk 0:02:15.9]} 20. a4 {[%clk 0:02:20.1]} 20... d4 {[%clk 0:02:06.7]} 21.
Bxb7 {[%clk 0:02:15.3]} 21... Rxb7 {[%clk 0:02:05.2]} 22. Ne4 {[%clk 0:02:10.5]}
22... Rxe4 {[%clk 0:01:36.8]} 23. Qxe4 {[%clk 0:02:09.2]} 23... Rb6 {[%clk
0:01:37.1]} 24. exd4 {[%clk 0:02:07.7]} 24... Re6 {[%clk 0:01:34.2]} 25. Qd3
{[%clk 0:02:06.4]} 25... cxd4 {[%clk 0:01:32.6]} 26. a5 {[%clk 0:02:01.8]} 26...
Kg7 {[%clk 0:01:24.6]} 27. b6 {[%clk 0:01:59.2]} 27... axb6 {[%clk 0:01:24.8]}
28. axb6 {[%clk 0:01:59.7]} 28... Nd5 {[%clk 0:01:18.4]} 29. b7 {[%clk
0:01:58.2]} 29... Qb8 {[%clk 0:01:17.2]} 30. Nxd4 {[%clk 0:01:57.2]} 30... Rd6
{[%clk 0:01:07.6]} 31. Nc6 {[%clk 0:01:52.1]} 31... Rxc6 {[%clk 0:01:07.1]} 32.
Qxd5 {[%clk 0:01:52.8]} 32... Rc7 {[%clk 0:01:04.5]} 33. g3 {[%clk 0:01:52.4]}
33... h5 {[%clk 0:01:03.1]} 34. h4 {[%clk 0:01:51.6]} 34... Rc2 {[%clk 0:00:48]}
35. Rdc1 {[%clk 0:01:48.5]} 35... Re2 {[%clk 0:00:45.5]} 36. Qf3 {[%clk
0:01:44.5]} 36... Re8 {[%clk 0:00:41.3]} 37. Kg2 {[%clk 0:01:38.9]} 37... Bd4
{[%clk 0:00:40]} 38. Rc4 {[%clk 0:01:37.6]} 38... Ba7 {[%clk 0:00:38]} 39. Qc3+
{[%clk 0:01:33]} 39... Kh7 {[%clk 0:00:35.9]} 40. Rc8 {[%clk 0:01:33.1]} 1-0

[Event "Early-Titled-Tuesday-Blitz-September-26-2023"]
[Site "Chess.com"]
[Date "2023.09.26"]
[Round "4"]
[White "kuba2006"]
[Black "jasonbolivar"]
[Result "1-0"]
[WhiteElo "2480"]
[BlackElo "2255"]
[TimeControl "180+1"]
[EndTime "8:38:17 PDT"]
[Termination "kuba2006 won on time"]

1. b3 {[%clk 0:03:00.9]} 1... Nf6 {[%clk 0:01:07.7]} 2. Bb2 {[%clk 0:03:01.8]}
2... g6 {[%clk 0:01:07]} 3. e4 {[%clk 0:02:57.4]} 3... d6 {[%clk 0:01:04.5]} 4.
f4 {[%clk 0:02:56.8]} 4... Bg7 {[%clk 0:01:04]} 5. e5 {[%clk 0:02:57.1]} 5...
Nfd7 {[%clk 0:01:01.9]} 6. d4 {[%clk 0:02:56.2]} 6... O-O {[%clk 0:01:01.6]} 7.
Nf3 {[%clk 0:02:55.7]} 7... dxe5 {[%clk 0:00:56.3]} 8. dxe5 {[%clk 0:02:56.6]}
8... Nc5 {[%clk 0:00:53.8]} 9. Nbd2 {[%clk 0:02:51.8]} 9... Nc6 {[%clk
0:00:51.7]} 10. Bc4 {[%clk 0:02:42.8]} 10... Be6 {[%clk 0:00:50.4]} 11. O-O
{[%clk 0:02:38.7]} 11... Bh6 {[%clk 0:00:47.1]} 12. g3 {[%clk 0:02:21.8]} 12...
Bh3 {[%clk 0:00:45.7]} 13. Re1 {[%clk 0:02:19.6]} 13... Bg4 {[%clk 0:00:41.7]}
14. Qe2 {[%clk 0:02:17.8]} 14... Qc8 {[%clk 0:00:34.7]} 15. Qf2 {[%clk
0:02:16.9]} 15... Ne6 {[%clk 0:00:32.2]} 16. Ne4 {[%clk 0:02:14.1]} 16... Rd8
{[%clk 0:00:21.6]} 17. Rad1 {[%clk 0:02:09.3]} 17... Ng7 {[%clk 0:00:20.2]} 18.
Rxd8+ {[%clk 0:01:30.4]} 18... Qxd8 {[%clk 0:00:19.8]} 19. Nfg5 {[%clk
0:01:30.9]} 19... Be6 {[%clk 0:00:11.6]} 20. Nxe6 {[%clk 0:01:27.4]} 20... Nxe6
{[%clk 0:00:12.5]} 21. f5 {[%clk 0:01:27.9]} 21... gxf5 {[%clk 0:00:07.1]} 22.
Qxf5 {[%clk 0:01:28.8]} 22... Ncd4 {[%clk 0:00:05.4]} 23. Qh5 {[%clk 0:01:09.8]}
23... Bg7 {[%clk 0:00:01.2]} 24. Rf1 {[%clk 0:01:10.3]} 1-0

[Event "Early-Titled-Tuesday-Blitz-September-26-2023"]
[Site "Chess.com"]
[Date "2023.09.26"]
[Round "4"]
[White "guillembaches"]
[Black "PedroGil25"]
[Result "1/2-1/2"]
[WhiteElo "2509"]
[BlackElo "2331"]
[TimeControl "180+1"]
[EndTime "8:38:18 PDT"]
[Termination "Game drawn by repetition"]

1. d4 {[%clk 0:03:00.9]} 1... Nf6 {[%clk 0:02:57.5]} 2. Nf3 {[%clk 0:03:01.1]}
2... b6 {[%clk 0:02:56.7]} 3. Bg5 {[%clk 0:03:00.9]} 3... Bb7 {[%clk 0:02:54]}
4. Nbd2 {[%clk 0:03:00.7]} 4... d5 {[%clk 0:02:52.4]} 5. e3 {[%clk 0:02:58.4]}
5... e6 {[%clk 0:02:52.4]} 6. Bd3 {[%clk 0:02:57.2]} 6... Nbd7 {[%clk
0:02:51.1]} 7. c3 {[%clk 0:02:48.2]} 7... Be7 {[%clk 0:02:50.2]} 8. Qe2 {[%clk
0:02:43.2]} 8... O-O {[%clk 0:02:50.2]} 9. h4 {[%clk 0:02:33.9]} 9... c5 {[%clk
0:02:48.7]} 10. Bf4 {[%clk 0:02:26.4]} 10... Rc8 {[%clk 0:02:44.3]} 11. h5
{[%clk 0:02:17.7]} 11... Ne4 {[%clk 0:02:41.9]} 12. h6 {[%clk 0:02:14.3]} 12...
g6 {[%clk 0:02:41.5]} 13. Ba6 {[%clk 0:02:09.5]} 13... Bxa6 {[%clk 0:02:29.7]}
14. Qxa6 {[%clk 0:02:09.1]} 14... Nxd2 {[%clk 0:02:29.6]} 15. Nxd2 {[%clk
0:02:08.8]} 15... Ra8 {[%clk 0:02:30.2]} 16. Nf3 {[%clk 0:01:54.8]} 16... Qc8
{[%clk 0:02:26.7]} 17. Qe2 {[%clk 0:01:49.3]} 17... Qc6 {[%clk 0:02:21.6]} 18.
a4 {[%clk 0:01:42.5]} 18... a6 {[%clk 0:02:18.1]} 19. O-O {[%clk 0:01:41.3]}
19... b5 {[%clk 0:02:14.5]} 20. dxc5 {[%clk 0:01:31.4]} 20... Bxc5 {[%clk
0:02:09.5]} 21. axb5 {[%clk 0:01:20.7]} 21... axb5 {[%clk 0:02:07.3]} 22. Ne5
{[%clk 0:01:18.2]} 22... Nxe5 {[%clk 0:02:06.3]} 23. Bxe5 {[%clk 0:01:18.3]}
23... Rfc8 {[%clk 0:02:01.3]} 24. Qf3 {[%clk 0:01:08.9]} 24... Be7 {[%clk
0:02:00.1]} 25. Bf6 {[%clk 0:01:06.1]} 25... Bf8 {[%clk 0:01:59.5]} 26. Bd4
{[%clk 0:01:03.2]} 26... f5 {[%clk 0:01:58.9]} 27. Qf4 {[%clk 0:01:01]} 27...
Qd6 {[%clk 0:01:47]} 28. Qg5 {[%clk 0:01:00.1]} 28... Qe7 {[%clk 0:01:45]} 29.
Bf6 {[%clk 0:00:59.3]} 29... Qf7 {[%clk 0:01:43.4]} 30. Bd4 {[%clk 0:00:56.8]}
30... b4 {[%clk 0:01:35.1]} 31. Qf4 {[%clk 0:00:53.2]} 31... Rxa1 {[%clk
0:01:09.3]} 32. Rxa1 {[%clk 0:00:44.7]} 32... Qc7 {[%clk 0:01:09.1]} 33. Qg5
{[%clk 0:00:38.9]} 33... Qe7 {[%clk 0:01:08.8]} 34. Qf4 {[%clk 0:00:38.9]} 34...
Qd6 {[%clk 0:01:06.2]} 35. Be5 {[%clk 0:00:37.8]} 35... Qe7 {[%clk 0:01:02.3]}
36. Bd4 {[%clk 0:00:37]} 36... Qd6 {[%clk 0:01:02]} 37. Be5 {[%clk 0:00:37.3]}
37... Qe7 {[%clk 0:01:02]} 38. Bd4 {[%clk 0:00:37.4]} 1/2-1/2